fUST/lending_fUST_20250809
["ID","MTS","AMOUNT","RATE_DAILY","PERIOD"]
[378158806,1754753271634,6682.59311982,0.00018,2]
[378158807,1754753275507,914.2,0.00021511,2]
[378158808,1754753275699,4546.52584633,0.00018,2]
[378158809,1754753275925,513.66459198,0.00021511,21]
[378158810,1754753277118,460.0,0.00021511,2]
[378158811,1754753300006,1119.09,0.00021511,2]
[378158812,1754753308752,460.0,0.00021511,2]
[378158813,1754753310132,460.0,0.00021511,2]
[378158814,1754753311125,460.0,0.00021511,2]
[378158815,1754753312733,557.31513292,0.00021511,2]
[378158816,1754753316627,195.85995065,0.0002,20]
[378158818,1754753328323,460.0,0.00021511,2]
[378158819,1754753328771,597.05,0.00023868,30]
[378158820,1754753329186,1194.11,0.00025005,30]
[378158821,1754753329613,1791.16,0.00026141,30]
[378158822,1754753329822,500.0,0.00021511,2]
[378158823,1754753330084,2388.22,0.00027278,30]
[378158824,1754753330114,500.0,0.00021511,2]
[378158825,1754753333040,460.0,0.00021511,2]
[378158826,1754753339488,1710.7513583,0.0001,2]
[378158827,1754753339513,13285.8386417,0.0001,2]
[378158828,1754753343013,300.0,0.00021511,2]
[378158829,1754753343077,460.0,0.00021511,2]
[378158830,1754753352129,460.0,0.00021511,2]
[378158831,1754753359910,701.49,0.00021511,2]
[378158833,1754753367499,460.0,0.00021511,2]
[378158834,1754753375818,460.0,0.00021511,2]
[378158835,1754753377699,310.68311883,0.00021511,2]
[378158836,1754753378217,3561.98823947,0.000199,2]
[378158837,1754753378245,4088.4960802,0.000199,2]
[378158838,1754753378551,460.0,0.00021511,2]
[378158839,1754753379159,460.0,0.00021511,2]
[378158840,1754753379881,460.0,0.00021511,2]
[378158841,1754753387453,460.0,0.00021511,2]
[378158846,1754753400975,460.0,0.00021511,2]
[378158847,1754753402442,300.0,0.00021511,2]
[378158848,1754753403152,467.31,0.00021511,2]
[378158849,1754753403236,460.0,0.00021511,2]
[378158850,1754753406777,1200.0,0.00021511,2]
[378158851,1754753407239,390.26213647,0.00021511,2]
[378158852,1754753411846,460.0,0.00021511,2]
[378158853,1754753412211,460.0,0.00021511,2]
[378158854,1754753413339,631.94,0.00023271,30]
[378158855,1754753413803,460.0,0.00021511,2]
[378158856,1754753414467,1263.88,0.00024379,30]
[378158857,1754753414892,1895.81,0.00025487,30]
[378158858,1754753415260,1503.76,0.00021511,2]
[378158859,1754753415321,2527.75,0.00026595,30]
[378158860,1754753415733,3159.69,0.00027703,30]
[378158861,1754753416423,390.26213647,0.00021511,2]
[378158862,1754753422349,778.58,0.00021511,2]
[378158864,1754753428755,460.0,0.00021511,2]
[378158886,1754753436429,601.55,0.00021511,2]
[378158888,1754753438031,-250.71300834,0.00021512,2]
[378158893,1754753438078,-209.28699166,0.00021512,2]
[378158896,1754753438088,-460.0,0.00021512,2]
[378158898,1754753438098,-622.71,0.00021512,2]
[378158900,1754753438108,-225.09218976,0.00021512,2]
[378158902,1754753438117,-460.0,0.00021512,2]
[378158904,1754753438127,-460.0,0.00021512,2]
[378158907,1754753438137,-460.0,0.00021512,2]
[378158911,1754753438147,-460.0,0.00021512,2]
[378158915,1754753438156,-841.76,0.00021512,2]
[378158917,1754753438166,-460.0,0.00021512,2]
[378158920,1754753438176,-832.98,0.00021512,2]
[378158923,1754753438185,-669.63084944,0.00021553,2]
[378158925,1754753438194,-799.12,0.00021653,2]
[378158927,1754753438204,-460.0,0.00021653,2]
[378158929,1754753438214,-827.98,0.00021653,2]
[378158931,1754753438224,-460.0,0.00021653,2]
[378158933,1754753438233,-517.1,0.00021653,2]
[378158935,1754753438242,-377.09,0.00021654,2]
[378158937,1754753438252,-460.0,0.00021654,2]
[378158939,1754753438262,-460.0,0.00021654,2]
[378158941,1754753438272,-460.0,0.00021654,2]
[378158943,1754753438282,-460.0,0.00021654,2]
[378158955,1754753438468,-460.0,0.00021654,2]
[378158956,1754753438478,-460.0,0.00021654,2]
[378158957,1754753438488,-460.0,0.00021654,2]
[378158958,1754753438498,-460.0,0.00021654,2]
[378158959,1754753438508,-7650.48431953,0.00021655,2]
[378158961,1754753438516,-500.0,0.00021714,2]
[378158963,1754753438525,-2595.61,0.00021785,2]
[378158964,1754753438534,-460.0,0.00021785,2]
[378158965,1754753438545,-491.52373532,0.00021785,2]
[378158966,1754753438554,-1263.18,0.00021785,2]
[378158967,1754753438564,-460.0,0.00021785,2]
[378158968,1754753438573,-460.0,0.00021785,2]
[378158969,1754753438582,-519.05,0.00021785,2]
[378158970,1754753438592,-663.37,0.00021785,2]
[378158971,1754753438602,-460.0,0.00021785,2]
[378158972,1754753438612,-914.2,0.00021785,2]
[378158973,1754753438623,-460.0,0.00021785,2]
[378158974,1754753438633,-1119.09,0.00021785,2]
[378158975,1754753438643,-460.0,0.00021785,2]
[378158977,1754753438653,-460.0,0.00021785,2]
[378158978,1754753438663,-460.0,0.00021785,2]
[378158981,1754753438674,-460.0,0.00021785,2]
[378158983,1754753438683,-460.0,0.00021785,2]
[378158985,1754753438693,-460.0,0.00021785,2]
[378158986,1754753438703,-701.49,0.00021785,2]
[378158988,1754753438712,-460.0,0.00021785,2]
[378158990,1754753438722,-460.0,0.00021785,2]
[378158993,1754753438735,-460.0,0.00021785,2]
[378158994,1754753438745,-460.0,0.00021785,2]
[378158996,1754753438754,-460.0,0.00021785,2]
[378158998,1754753438764,-460.0,0.00021785,2]
[378159000,1754753438774,-460.0,0.00021785,2]
[378159002,1754753438783,-467.31,0.00021785,2]
[378159005,1754753438793,-460.0,0.00021785,2]
[378159006,1754753438803,-460.0,0.00021785,2]
[378159008,1754753438814,-1503.76,0.00021785,2]
[378159010,1754753438825,-778.58,0.00021785,2]
[378159012,1754753438834,-460.0,0.00021785,2]
[378159014,1754753438844,-601.55,0.00021785,2]
[378159017,1754753438854,-460.0,0.00021786,2]
[378159018,1754753438863,-622.71,0.00021786,2]
[378159020,1754753438874,-460.0,0.00021786,2]
[378159023,1754753438884,-460.0,0.00021786,2]
[378159024,1754753438895,-460.0,0.00021786,2]
[378159027,1754753438905,-841.76,0.00021786,2]
[378159028,1754753438914,-832.98,0.00021786,2]
[378159030,1754753438924,-182.59,0.00021802,10]
[378159032,1754753438934,-460.0,0.00021812,2]
[378159035,1754753438943,-460.0,0.00021812,2]
[378159036,1754753438953,-460.0,0.00021812,2]
[378159038,1754753438963,-499.94,0.00021812,2]
[378159040,1754753438973,-300.86262133,0.00021812,2]
[378159042,1754753438982,-479.66752958,0.00021812,2]
[378159044,1754753438991,-460.0,0.00021812,2]
[378159047,1754753439001,-502.73811941,0.00021812,2]
[378159049,1754753439011,-480.53305365,0.00021812,2]
[378159053,1754753439021,-460.0,0.00021812,2]
[378159056,1754753439031,-460.0,0.00021812,2]
[378159058,1754753439041,-460.0,0.00021812,2]
[378159060,1754753439052,-460.0,0.00021812,2]
[378159062,1754753439074,-152.27314387,0.00021812,2]
[378159063,1754753439084,-460.0,0.00021812,2]
[378159065,1754753439094,-460.0,0.00021812,2]
[378159067,1754753439104,-460.0,0.00021812,2]
[378159069,1754753439113,-460.0,0.00021812,2]
[378159071,1754753439122,-468.78053955,0.00021812,2]
[378159073,1754753439133,-460.0,0.00021812,2]
[378159075,1754753439142,-460.0,0.00021812,2]
[378159077,1754753439152,-460.0,0.00021812,2]
[378159079,1754753439161,-460.0,0.00021812,2]
[378159081,1754753439171,-460.0,0.00021812,2]
[378159083,1754753439180,-460.0,0.00021812,2]
[378159085,1754753439189,-460.0,0.00021812,2]
[378159087,1754753439199,-460.0,0.00021812,2]
[378159088,1754753439214,-460.0,0.00021812,2]
[378159089,1754753439223,-460.0,0.00021812,2]
[378159090,1754753439233,-460.0,0.00021812,2]
[378159091,1754753439242,-460.0,0.00021812,2]
[378159092,1754753439251,-2564.35,0.00021812,2]
[378159093,1754753439261,-460.0,0.00021812,2]
[378159094,1754753439270,-460.0,0.00021812,2]
[378159095,1754753439280,-500.0,0.00021812,2]
[378159096,1754753439289,-551.31,0.00021812,2]
[378159097,1754753439299,-460.0,0.00021812,2]
[378159098,1754753439308,-460.0,0.00021812,2]
[378159099,1754753439317,-460.0,0.00021812,2]
[378159100,1754753439326,-866.71,0.00021812,2]
[378159101,1754753439335,-460.0,0.00021814,2]
[378159102,1754753439344,-460.0,0.00021814,2]
[378159103,1754753439353,-460.0,0.00021814,2]
[378159104,1754753439366,-460.0,0.00021814,2]
[378159105,1754753439376,-460.0,0.00021814,2]
[378159106,1754753439385,-372.92925353,0.00021814,2]
[378159107,1754753439394,-460.0,0.00021814,2]
[378159108,1754753439403,-460.0,0.00021814,2]
[378159109,1754753439412,-460.0,0.00021814,2]
[378159110,1754753439421,-500.0,0.00021916,2]
[378159111,1754753439430,-1836.87,0.00021917,2]
[378159113,1754753439440,-799.12,0.00021927,2]
[378159115,1754753439450,-460.0,0.00021927,2]
[378159117,1754753439458,-827.98,0.00021927,2]
[378159118,1754753439467,-460.0,0.00021927,2]
[378159120,1754753439476,-517.1,0.00021927,2]
[378159122,1754753439486,-460.0,0.00021928,2]
[378159125,1754753439495,-483.71575989,0.00021928,2]
[378159126,1754753439504,-460.0,0.00021928,2]
[378159129,1754753439516,-460.0,0.00021928,2]
[378159131,1754753439525,-460.0,0.00021928,2]
[378159133,1754753439534,-548.74238082,0.00021928,2]
[378159135,1754753439544,-200.0,0.00021941,15]
[378159137,1754753439553,-200.0,0.00021941,15]
[378159139,1754753439562,-200.0,0.00021941,15]
[378159141,1754753439571,-200.0,0.00021941,15]
[378159143,1754753439581,-200.0,0.00021941,15]
[378159145,1754753439590,-494.03,0.00022,2]
[378159147,1754753439599,-168.0,0.00022,2]
[378159149,1754753439608,-348.19,0.00022049,10]
[378159151,1754753439618,-516.68775025,0.00022058,2]
[378159153,1754753439627,-303.84197912,0.00022058,2]
[378159155,1754753439637,-500.0,0.00022058,2]
[378159157,1754753439646,-366.72116026,0.00022058,2]
[378159159,1754753439655,-500.0,0.00022058,2]
[378159161,1754753439665,-163.69326997,0.00022058,2]
[378159163,1754753439674,-434.74447237,0.00022058,2]
[378159165,1754753439683,-2595.61,0.00022059,2]
[378159167,1754753439692,-460.0,0.00022059,2]
[378159169,1754753439701,-1263.18,0.00022059,2]
[378159171,1754753439711,-460.0,0.00022059,2]
[378159173,1754753439720,-460.0,0.00022059,2]
[378159175,1754753439734,-519.05,0.00022059,2]
[378159177,1754753439744,-663.37,0.00022059,2]
[378159179,1754753439753,-460.0,0.00022059,2]
[378159181,1754753439763,-914.2,0.00022059,2]
[378159183,1754753439773,-460.0,0.00022059,2]
[378159185,1754753439783,-323.07088058,0.00022059,2]
[378159192,1754753439841,-796.01911942,0.00022059,2]
[378159194,1754753439851,-460.0,0.00022059,2]
[378159196,1754753439860,-460.0,0.00022059,2]
[378159198,1754753439869,-460.0,0.00022059,2]
[378159200,1754753439878,-500.0,0.00022059,2]
[378159202,1754753439887,-460.0,0.00022059,2]
[378159204,1754753439897,-460.0,0.00022059,2]
[378159206,1754753439906,-460.0,0.00022059,2]
[378159208,1754753439915,-477.83885658,0.00022059,2]
[378159211,1754753439931,-223.65114342,0.00022059,2]
[378159213,1754753439941,-460.0,0.00022059,2]
[378159215,1754753439950,-460.0,0.00022059,2]
[378159217,1754753439959,-460.0,0.00022059,2]
[378159219,1754753439968,-460.0,0.00022059,2]
[378159221,1754753439978,-460.0,0.00022059,2]
[378159223,1754753439987,-356.34761962,0.00022059,2]
[378159225,1754753439997,-460.0,0.00022059,2]
[378159227,1754753440006,-467.31,0.00022059,2]
[378159229,1754753440016,-460.0,0.00022059,2]
[378159231,1754753440026,-460.0,0.00022059,2]
[378159233,1754753440036,-1503.76,0.00022059,2]
[378159235,1754753440045,-778.58,0.00022059,2]
[378159237,1754753440055,-460.0,0.00022059,2]
[378159239,1754753440068,-601.55,0.00022059,2]
[378159241,1754753440081,-460.0,0.0002206,2]
[378159244,1754753440094,-622.71,0.0002206,2]
[378159246,1754753440106,-460.0,0.0002206,2]
[378159248,1754753440119,-460.0,0.0002206,2]
[378159250,1754753440132,-460.0,0.0002206,2]
[378159253,1754753440143,-841.76,0.0002206,2]
[378159255,1754753440153,-832.98,0.0002206,2]
[378159257,1754753440164,-460.0,0.00022086,2]
[378159259,1754753440176,-415.48042788,0.00022086,2]
[378159261,1754753440187,-460.0,0.00022086,2]
[378159263,1754753440198,-460.0,0.00022086,2]
[378159266,1754753440210,-2564.35,0.00022086,2]
[378159268,1754753440223,-551.31,0.00022086,2]
[378159270,1754753440235,-460.0,0.00022086,2]
[378159272,1754753440247,-460.0,0.00022086,2]
[378159274,1754753440259,-866.71,0.00022086,2]
[378159276,1754753440271,-460.0,0.00022088,2]
[378159278,1754753440282,-460.0,0.00022088,2]
[378159279,1754753440295,-460.0,0.00022088,2]
[378159280,1754753440307,-152.95012187,0.00022102,2]
[378159281,1754753440318,-429.74,0.00022192,3]
[378159282,1754753440330,-799.12,0.00022201,2]
[378159283,1754753440341,-460.0,0.00022201,2]
[378159284,1754753440353,-348.80385114,0.00022201,2]
[378159285,1754753440364,-827.98,0.00022201,2]
[378159286,1754753440375,-517.1,0.00022201,2]
[378159287,1754753440386,-460.0,0.00022202,2]
[378159288,1754753440397,-460.0,0.00022202,2]
[378159289,1754753440408,-460.0,0.00022202,2]
[378159290,1754753440421,-214.87,0.00022323,3]
[378159291,1754753440433,-644.64,0.00022323,3]
[378159292,1754753440445,-2595.61,0.00022333,2]
[378159293,1754753440456,-460.0,0.00022333,2]
[378159294,1754753440467,-1263.18,0.00022333,2]
[378159295,1754753440478,-460.0,0.00022333,2]
[378159296,1754753440488,-460.0,0.00022333,2]
[378159297,1754753440498,-519.05,0.00022333,2]
[378159298,1754753440509,-663.37,0.00022333,2]
[378159299,1754753440521,-460.0,0.00022333,2]
[378159300,1754753440531,-914.2,0.00022333,2]
[378159301,1754753440543,-460.0,0.00022333,2]
[378159302,1754753440554,-1119.09,0.00022333,2]
[378159303,1754753440566,-460.0,0.00022333,2]
[378159304,1754753440577,-460.0,0.00022333,2]
[378159305,1754753440588,-460.0,0.00022333,2]
[378159306,1754753440599,-460.0,0.00022333,2]
[378159307,1754753440611,-460.0,0.00022333,2]
[378159308,1754753440623,-460.0,0.00022333,2]
[378159309,1754753440636,-701.49,0.00022333,2]
[378159310,1754753440648,-460.0,0.00022333,2]
[378159311,1754753440660,-460.0,0.00022333,2]
[378159312,1754753440673,-460.0,0.00022333,2]
[378159313,1754753440685,-460.0,0.00022333,2]
[378159314,1754753440694,-410.77880587,0.00022333,2]
[378159316,1754753440705,-460.0,0.00022333,2]
[378159318,1754753440716,-467.31,0.00022333,2]
[378159320,1754753440729,-460.0,0.00022333,2]
[378159322,1754753440743,-1503.76,0.00022333,2]
[378159323,1754753440754,-778.58,0.00022333,2]
[378159325,1754753440767,-460.0,0.00022333,2]
[378159326,1754753440780,-601.55,0.00022333,2]
[378159327,1754753440793,-460.0,0.00022334,2]
[378159328,1754753440805,-622.71,0.00022334,2]
[378159329,1754753440816,-460.0,0.00022334,2]
[378159330,1754753440827,-460.0,0.00022334,2]
[378159331,1754753440837,-460.0,0.00022334,2]
[378159332,1754753440847,-841.76,0.00022334,2]
[378159333,1754753440859,-832.98,0.00022334,2]
[378159334,1754753440869,-460.0,0.0002236,2]
[378159335,1754753440880,-460.0,0.0002236,2]
[378159336,1754753440892,-2564.35,0.0002236,2]
[378159337,1754753440903,-551.31,0.0002236,2]
[378159338,1754753440914,-460.0,0.0002236,2]
[378159339,1754753440925,-460.0,0.0002236,2]
[378159340,1754753440935,-866.71,0.0002236,2]
[378159341,1754753440945,-460.0,0.00022362,2]
[378159342,1754753440956,-460.0,0.00022362,2]
[378159343,1754753440967,-460.0,0.00022362,2]
[378159344,1754753440977,-246.76763945,0.00022373,2]
[378159345,1754753440988,-500.0,0.00022373,2]
[378159346,1754753440998,-500.0,0.00022373,2]
[378159347,1754753441009,-784.05028921,0.00022375,2]
[378159348,1754753441022,-784.05028921,0.00022375,2]
[378159349,1754753441032,-784.05028921,0.00022375,2]
[378159350,1754753441043,-784.05028921,0.00022375,2]
[378159351,1754753441054,-784.05028921,0.00022375,2]
[378159352,1754753441077,-784.05028921,0.00022375,2]
[378159353,1754753441088,-784.05028921,0.00022375,2]
[378159354,1754753441100,-784.05028921,0.00022375,2]
[378159355,1754753441111,-784.05028921,0.00022375,2]
[378159356,1754753441122,-784.05028921,0.00022375,2]
[378159357,1754753441133,-784.05028921,0.00022375,2]
[378159358,1754753441145,-784.05028921,0.00022375,2]
[378159359,1754753441156,-784.05028921,0.00022375,2]
[378159360,1754753441167,-789.65064842,0.00022375,2]
[378159361,1754753441177,-789.65064842,0.00022375,2]
[378159362,1754753441188,-789.65064842,0.00022375,2]
[378159363,1754753441199,-789.65064842,0.00022375,2]
[378159364,1754753441210,-789.65064842,0.00022375,2]
[378159365,1754753441221,-789.65064842,0.00022375,2]
[378159366,1754753441231,-789.65064842,0.00022375,2]
[378159367,1754753441243,-789.65064842,0.00022375,2]
[378159368,1754753441254,-824.34741933,0.00022375,2]
[378159369,1754753441266,-824.34741933,0.00022375,2]
[378159370,1754753441276,-824.34741933,0.00022375,2]
[378159371,1754753441288,-329.69635784,0.00022375,2]
[378159372,1754753441299,-370000.0,0.00022376,2]
[378159373,1754753441310,-799.12,0.00022475,2]
[378159374,1754753441322,-827.98,0.00022475,2]
[378159375,1754753441332,-517.1,0.00022475,2]
[378159376,1754753441343,-460.0,0.00022476,2]
[378159377,1754753441354,-460.0,0.00022476,2]
[378159378,1754753441364,-460.0,0.00022476,2]
[378159379,1754753441375,-2595.61,0.00022607,2]
[378159380,1754753441386,-460.0,0.00022607,2]
[378159381,1754753441396,-1263.18,0.00022607,2]
[378159382,1754753441406,-460.0,0.00022607,2]
[378159383,1754753441417,-460.0,0.00022607,2]
[378159384,1754753441428,-519.05,0.00022607,2]
[378159385,1754753441438,-663.37,0.00022607,2]
[378159386,1754753441449,-460.0,0.00022607,2]
[378159387,1754753441459,-914.2,0.00022607,2]
[378159388,1754753441470,-460.0,0.00022607,2]
[378159389,1754753441481,-1119.09,0.00022607,2]
[378159390,1754753441492,-460.0,0.00022607,2]
[378159391,1754753441503,-460.0,0.00022607,2]
[378159392,1754753441514,-460.0,0.00022607,2]
[378159393,1754753441524,-460.0,0.00022607,2]
[378159394,1754753441535,-460.0,0.00022607,2]
[378159395,1754753441546,-460.0,0.00022607,2]
[378159396,1754753441558,-701.49,0.00022607,2]
[378159397,1754753441569,-460.0,0.00022607,2]
[378159398,1754753441580,-213.56704222,0.00022607,2]
[378159399,1754753441592,-460.0,0.00022607,2]
[378159400,1754753441603,-460.0,0.00022607,2]
[378159401,1754753441615,-460.0,0.00022607,2]
[378159402,1754753441625,-467.31,0.00022607,2]
[378159403,1754753441636,-460.0,0.00022607,2]
[378159404,1754753441646,-1503.76,0.00022607,2]
[378159405,1754753441657,-778.58,0.00022607,2]
[378159406,1754753441667,-239.34814127,0.00022607,2]
[378159407,1754753441678,-601.55,0.00022607,2]
[378159408,1754753441689,-460.0,0.00022608,2]
[378159409,1754753441700,-622.71,0.00022608,2]
[378159410,1754753441710,-460.0,0.00022608,2]
[378159411,1754753441722,-460.0,0.00022608,2]
[378159412,1754753441735,-460.0,0.00022608,2]
[378159413,1754753441746,-841.76,0.00022608,2]
[378159414,1754753441757,-832.98,0.00022608,2]
[378159415,1754753441769,-460.0,0.00022634,2]
[378159416,1754753441780,-460.0,0.00022634,2]
[378159417,1754753441791,-2564.35,0.00022634,2]
[378159418,1754753441804,-551.31,0.00022634,2]
[378159419,1754753441815,-460.0,0.00022634,2]
[378159420,1754753441826,-866.71,0.00022634,2]
[378159421,1754753441836,-460.0,0.00022636,2]
[378159422,1754753441847,-460.0,0.00022636,2]
[378159423,1754753441858,-460.0,0.00022636,2]
[378159424,1754753441877,-160.0,0.00022697,2]
[378159425,1754753441901,-160.0,0.00022705,2]
[378159426,1754753441922,-215.40758176,0.00022705,2]
[378159427,1754753441943,-461.55179734,0.00022705,2]
[378159428,1754753441965,-842.95011917,0.00022705,2]
[378159429,1754753441974,-527.77735381,0.00022705,2]
[378159430,1754753442157,-216.61183532,0.00022705,2]
[378159431,1754753442174,-312.16666667,0.00022705,2]
[378159432,1754753442187,-231.92402426,0.00022705,2]
[378159433,1754753442197,-12666.14847857,0.00022705,2]
[378159434,1754753442206,-160.0,0.00022708,2]
[378159435,1754753442215,-151.731813,0.00022739,7]
[378159436,1754753442225,-799.12,0.00022749,2]
[378159437,1754753442234,-827.98,0.00022749,2]
[378159438,1754753442243,-517.1,0.00022749,2]
[378159439,1754753442253,-460.0,0.0002275,2]
[378159440,1754753442264,-460.0,0.0002275,2]
[378159441,1754753442273,-460.0,0.0002275,2]
[378159442,1754753442283,-160.0,0.0002281,2]
[378159443,1754753442292,-560.49444411,0.00022881,2]
[378159444,1754753442306,-905.07181931,0.00022881,2]
[378159445,1754753442318,-1130.04373658,0.00022881,2]
[378159446,1754753442327,-460.0,0.00022881,2]
[378159447,1754753442338,-1263.18,0.00022881,2]
[378159448,1754753442347,-460.0,0.00022881,2]
[378159449,1754753442357,-460.0,0.00022881,2]
[378159450,1754753442367,-519.05,0.00022881,2]
[378159451,1754753442376,-663.37,0.00022881,2]
[378159452,1754753442385,-460.0,0.00022881,2]
[378159453,1754753442394,-914.2,0.00022881,2]
[378159454,1754753442403,-460.0,0.00022881,2]
[378159455,1754753442413,-1119.09,0.00022881,2]
[378159456,1754753442422,-460.0,0.00022881,2]
[378159457,1754753442431,-460.0,0.00022881,2]
[378159458,1754753442440,-460.0,0.00022881,2]
[378159459,1754753442449,-460.0,0.00022881,2]
[378159460,1754753442459,-460.0,0.00022881,2]
[378159461,1754753442468,-460.0,0.00022881,2]
[378159462,1754753442477,-701.49,0.00022881,2]
[378159463,1754753442487,-460.0,0.00022881,2]
[378159464,1754753442496,-460.0,0.00022881,2]
[378159465,1754753442505,-460.0,0.00022881,2]
[378159466,1754753442516,-460.0,0.00022881,2]
[378159467,1754753442525,-460.0,0.00022881,2]
[378159468,1754753442534,-467.31,0.00022881,2]
[378159469,1754753442543,-1503.76,0.00022881,2]
[378159470,1754753442553,-778.58,0.00022881,2]
[378159471,1754753442562,-601.55,0.00022881,2]
[378159472,1754753442571,-460.0,0.00022882,2]
[378159473,1754753442581,-622.71,0.00022882,2]
[378159474,1754753442590,-460.0,0.00022882,2]
[378159475,1754753442599,-460.0,0.00022882,2]
[378159476,1754753442610,-460.0,0.00022882,2]
[378159477,1754753442619,-841.76,0.00022882,2]
[378159478,1754753442629,-832.98,0.00022882,2]
[378159479,1754753442638,-460.0,0.00022908,2]
[378159480,1754753442647,-2564.35,0.00022908,2]
[378159481,1754753442657,-551.31,0.00022908,2]
[378159482,1754753442667,-460.0,0.00022908,2]
[378159483,1754753442676,-866.71,0.00022908,2]
[378159484,1754753442686,-460.0,0.0002291,2]
[378159485,1754753442695,-460.0,0.0002291,2]
[378159486,1754753442705,-460.0,0.0002291,2]
[378159487,1754753442715,-1000.0,0.00022921,2]
[378159488,1754753442726,-669.63084937,0.00022969,2]
[378159489,1754753442735,-160.0,0.00023,2]
[378159490,1754753442745,-799.12,0.00023023,2]
[378159491,1754753442757,-827.98,0.00023023,2]
[378159492,1754753442767,-517.1,0.00023023,2]
[378159493,1754753442776,-460.0,0.00023024,2]
[378159494,1754753442785,-460.0,0.00023024,2]
[378159495,1754753442795,-460.0,0.00023024,2]
[378159496,1754753442806,-2595.61,0.00023155,2]
[378159497,1754753442815,-460.0,0.00023155,2]
[378159498,1754753442824,-1263.18,0.00023155,2]
[378159499,1754753442834,-460.0,0.00023155,2]
[378159500,1754753442843,-460.0,0.00023155,2]
[378159501,1754753442852,-519.05,0.00023155,2]
[378159502,1754753442862,-301.70076595,0.00023155,2]
[378159503,1754753443098,200.0,0.00021493,2]
[378159515,1754753443457,-22029.45393127,0.00021512,2]
[378159518,1754753443468,-11126.78884034,0.00021512,2]
[378159519,1754753443478,-361.66923405,0.00023155,2]
[378159521,1754753443487,-460.0,0.00023155,2]
[378159522,1754753443498,-914.2,0.00023155,2]
[378159524,1754753443506,-460.0,0.00023155,2]
[378159525,1754753443516,-1119.09,0.00023155,2]
[378159526,1754753443526,-460.0,0.00023155,2]
[378159527,1754753443535,-460.0,0.00023155,2]
[378159528,1754753443544,-460.0,0.00023155,2]
[378159529,1754753443553,-460.0,0.00023155,2]
[378159530,1754753443562,-460.0,0.00023155,2]
[378159531,1754753443571,-460.0,0.00023155,2]
[378159532,1754753443580,-701.49,0.00023155,2]
[378159533,1754753443589,-460.0,0.00023155,2]
[378159534,1754753443598,-460.0,0.00023155,2]
[378159535,1754753443607,-460.0,0.00023155,2]
[378159536,1754753443617,-460.0,0.00023155,2]
[378159537,1754753443629,-460.0,0.00023155,2]
[378159538,1754753443639,-467.31,0.00023155,2]
[378159539,1754753443649,-1503.76,0.00023155,2]
[378159540,1754753443659,-778.58,0.00023155,2]
[378159541,1754753443668,-601.55,0.00023155,2]
[378159542,1754753443677,-460.0,0.00023156,2]
[378159543,1754753443687,-622.71,0.00023156,2]
[378159545,1754753443696,-460.0,0.00023156,2]
[378159547,1754753443706,-460.0,0.00023156,2]